bitfinex/quotes_BTCUSD_20230907
["timestamp","ask_amount","ask_price","bid_price","bid_amount"]
[1694117340420,3.66430538,25903.0,25902.0,0.005117]
[1694117340646,3.66796538,25903.0,25902.0,0.005117]
[1694117340848,3.66742538,25903.0,25902.0,0.005117]
[1694117341086,3.66718538,25903.0,25902.0,0.005117]
[1694117341599,3.64678538,25903.0,25902.0,0.005117]
[1694117341834,3.64636538,25903.0,25902.0,0.005117]
[1694117342066,3.64660538,25903.0,25902.0,0.005117]
[1694117342291,3.64672538,25903.0,25902.0,0.005117]
[1694117342518,3.64546538,25903.0,25902.0,0.005117]
[1694117342746,3.64588538,25903.0,25902.0,0.005117]
[1694117342973,3.57916538,25903.0,25902.0,0.005117]
[1694117343692,3.25603246,25903.0,25902.0,0.005117]
[1694117343887,3.18955246,25903.0,25902.0,0.005117]
[1694117347427,2.41744146,25903.0,25902.0,0.005117]
[1694117348187,2.33744146,25903.0,25902.0,0.005117]
[1694117348414,2.41744146,25903.0,25902.0,0.005117]
[1694117348754,2.39744146,25903.0,25902.0,0.005117]
[1694117354174,3.63632538,25903.0,25902.0,0.005117]
[1694117354365,3.65894538,25903.0,25902.0,0.005117]
[1694117354658,3.65822538,25903.0,25902.0,0.005117]
[1694117354879,3.65756538,25903.0,25902.0,0.005117]
[1694117355087,3.65738538,25903.0,25902.0,0.005117]
[1694117355288,3.65222538,25903.0,25902.0,0.005117]
[1694117355527,3.65210538,25903.0,25902.0,0.005117]
[1694117355713,3.7453535,25903.0,25902.0,0.005117]
[1694117355886,3.7448135,25903.0,25902.0,0.005117]
[1694117356101,3.7501535,25903.0,25902.0,0.005117]
[1694117356272,3.7502735,25903.0,25902.0,0.005117]
[1694117356452,3.7535735,25903.0,25902.0,0.005117]
[1694117356654,3.89234676,25903.0,25902.0,0.005117]
[1694117356859,3.89222676,25903.0,25902.0,0.005117]
[1694117357065,3.89210676,25903.0,25902.0,0.005117]
[1694117357262,3.88700676,25903.0,25902.0,0.005117]
[1694117357517,3.88478676,25903.0,25902.0,0.005117]
[1694117357719,3.78541864,25903.0,25902.0,0.005117]
[1694117357920,3.90303745,25903.0,25902.0,0.005117]
[1694117358129,3.89643745,25903.0,25902.0,0.005117]
[1694117358326,3.77473631,25903.0,25902.0,0.005117]
[1694117358525,3.9595501,25903.0,25902.0,0.005117]
[1694117358753,3.9585301,25903.0,25902.0,0.005117]
[1694117358949,3.9590101,25903.0,25902.0,0.005117]
[1694117359084,3.63548538,25903.0,25902.0,0.005117]
[1694117359285,3.95956371,25903.0,25902.0,0.005117]
[1694117359545,3.89312451,25903.0,25902.0,0.005117]
[1694117359756,3.89504451,25903.0,25902.0,0.005117]
[1694117359968,3.89384451,25903.0,25902.0,0.005117]
[1694117360168,3.89444451,25903.0,25902.0,0.005117]
[1694117360369,3.89480451,25903.0,25902.0,0.005117]
[1694117360564,3.89486451,25903.0,25902.0,0.005117]
[1694117360784,3.89468451,25903.0,25902.0,0.005117]
[1694117361009,3.89474451,25903.0,25902.0,0.005117]
[1694117361665,3.89402451,25903.0,25902.0,0.005117]
[1694117361839,3.89522451,25903.0,25902.0,0.005117]
[1694117362059,3.89468451,25903.0,25902.0,0.005117]
[1694117362410,3.89462451,25903.0,25902.0,0.005117]
[1694117362632,4.12604903,25903.0,25902.0,0.005117]
[1694117362816,4.12610903,25903.0,25902.0,0.005117]
[1694117363019,4.12616903,25903.0,25902.0,0.005117]
[1694117363241,4.12604903,25903.0,25902.0,0.005117]
[1694117363460,4.12598903,25903.0,25902.0,0.005117]
[1694117363676,3.94134141,25903.0,25902.0,0.005117]
[1694117363893,3.94170141,25903.0,25902.0,0.005117]
[1694117364561,3.94152141,25903.0,25902.0,0.005117]
[1694117364779,3.94146141,25903.0,25902.0,0.005117]
[1694117365178,3.94152141,25903.0,25902.0,0.005117]
[1694117365634,3.71003689,25903.0,25902.0,0.005117]
[1694117365839,3.70997689,25903.0,25902.0,0.005117]
[1694117366038,3.70865689,25903.0,25902.0,0.005117]
[1694117366265,3.70883689,25903.0,25902.0,0.005117]
[1694117366441,3.70949689,25903.0,25902.0,0.005117]
[1694117366642,3.70937689,25903.0,25902.0,0.005117]
[1694117366842,3.70907689,25903.0,25902.0,0.005117]
[1694117367046,3.70889689,25903.0,25902.0,0.005117]
[1694117367265,3.70859689,25903.0,25902.0,0.005117]
[1694117367476,3.70847689,25903.0,25902.0,0.005117]
[1694117367691,3.70829689,25903.0,25902.0,0.005117]
[1694117367899,3.70805689,25903.0,25902.0,0.005117]
[1694117368111,3.70793689,25903.0,25902.0,0.005117]
[1694117368328,3.70781689,25903.0,25902.0,0.005117]
[1694117368541,3.70757689,25903.0,25902.0,0.005117]
[1694117368740,3.70745689,25903.0,25902.0,0.005117]
[1694117368939,3.70667689,25903.0,25902.0,0.005117]
[1694117369150,3.70655689,25903.0,25902.0,0.005117]
[1694117369355,3.70649689,25903.0,25902.0,0.005117]
[1694117369564,3.98421832,25903.0,25902.0,0.005117]
[1694117369767,3.98403832,25903.0,25902.0,0.005117]
[1694117370169,3.98391832,25903.0,25902.0,0.005117]
[1694117370378,3.98217832,25903.0,25902.0,0.005117]
[1694117370594,3.98181832,25903.0,25902.0,0.005117]
[1694117370806,3.98415832,25903.0,25902.0,0.005117]
[1694117371024,3.98889832,25903.0,25902.0,0.005117]
[1694117371238,3.98877832,25903.0,25902.0,0.005117]
[1694117371435,3.98769832,25903.0,25902.0,0.005117]
[1694117371636,3.98697832,25903.0,25902.0,0.005117]
[1694117371845,3.98463832,25903.0,25902.0,0.005117]
[1694117372067,3.98607832,25903.0,25902.0,0.005117]
[1694117372299,3.92475832,25903.0,25902.0,0.005117]
[1694117372510,3.92631832,25903.0,25902.0,0.005117]
[1694117372718,3.92643832,25903.0,25902.0,0.005117]
[1694117372935,3.92619832,25903.0,25902.0,0.005117]
[1694117373218,3.92439832,25903.0,25902.0,0.005117]
[1694117373425,3.92205832,25903.0,25902.0,0.005117]
[1694117373618,3.92271832,25903.0,25902.0,0.005117]
[1694117373770,3.92169832,25903.0,25902.0,0.005117]
[1694117373982,3.92151832,25903.0,25902.0,0.005117]
[1694117374211,3.92145832,25903.0,25902.0,0.005117]
[1694117374447,3.92139832,25903.0,25902.0,0.005117]
[1694117374663,3.72054132,25903.0,25902.0,0.005117]
[1694117374873,3.75173159,25903.0,25902.0,0.005117]
[1694117375081,3.75167159,25903.0,25902.0,0.005117]
[1694117375307,3.75161159,25903.0,25902.0,0.005117]
[1694117375535,3.75041159,25903.0,25902.0,0.005117]
[1694117375759,3.75017159,25903.0,25902.0,0.005117]
[1694117375972,3.75023159,25903.0,25902.0,0.005117]
[1694117376187,3.75017159,25903.0,25902.0,0.005117]
[1694117376373,3.75005159,25903.0,25902.0,0.005117]
[1694117376572,3.74999159,25903.0,25902.0,0.005117]
[1694117376780,3.74957159,25903.0,25902.0,0.005117]
[1694117376987,3.74951159,25903.0,25902.0,0.005117]
[1694117377196,3.74945159,25903.0,25902.0,0.005117]
[1694117377345,3.74933159,25903.0,25902.0,0.005117]
[1694117377759,3.74849159,25903.0,25902.0,0.005117]
[1694117377964,3.74819159,25903.0,25902.0,0.005117]
[1694117378335,3.74813159,25903.0,25902.0,0.005117]
[1694117378533,3.74801159,25903.0,25902.0,0.005117]
[1694117378729,3.74945159,25903.0,25902.0,0.005117]
[1694117379044,3.74807159,25903.0,25902.0,0.005117]
[1694117379246,3.74801159,25903.0,25902.0,0.005117]
[1694117379457,3.74795159,25903.0,25902.0,0.005117]
[1694117379692,3.74771159,25903.0,25902.0,0.005117]
[1694117379898,3.74789159,25903.0,25902.0,0.005117]
[1694117380115,3.74843159,25903.0,25902.0,0.005117]
[1694117380329,3.74825159,25903.0,25902.0,0.005117]
[1694117380541,3.74921159,25903.0,25902.0,0.005117]
[1694117380739,3.74897159,25903.0,25902.0,0.005117]
[1694117380977,3.74909159,25903.0,25902.0,0.005117]
[1694117381160,3.74903159,25903.0,25902.0,0.005117]
[1694117381359,3.74879159,25903.0,25902.0,0.005117]
[1694117381568,3.74855159,25903.0,25902.0,0.005117]
[1694117381769,3.74849159,25903.0,25902.0,0.005117]
[1694117381974,3.74843159,25903.0,25902.0,0.005117]
[1694117382191,3.74837159,25903.0,25902.0,0.005117]
[1694117382333,3.74831159,25903.0,25902.0,0.005117]
[1694117382751,3.74825159,25903.0,25902.0,0.005117]
[1694117383152,3.74819159,25903.0,25902.0,0.005117]
[1694117383332,3.74813159,25903.0,25902.0,0.005117]
[1694117383543,3.74801159,25903.0,25902.0,0.005117]
[1694117383744,3.74795159,25903.0,25902.0,0.005117]
[1694117383947,3.74789159,25903.0,25902.0,0.005117]
[1694117384151,3.35773867,25903.0,25902.0,0.005117]
[1694117384627,3.35725867,25903.0,25902.0,0.005117]
[1694117384818,3.35719867,25903.0,25902.0,0.005117]
[1694117385197,3.35713867,25903.0,25902.0,0.005117]
[1694117385397,3.35707867,25903.0,25902.0,0.005117]
[1694117385576,3.35695867,25903.0,25902.0,0.005117]
[1694117385776,3.35623867,25903.0,25902.0,0.005117]
[1694117386042,3.35617867,25903.0,25902.0,0.005117]
[1694117386266,3.35659867,25903.0,25902.0,0.005117]
[1694117386644,3.35653867,25903.0,25902.0,0.005117]
[1694117386840,3.34054889,25903.0,25902.0,0.005117]
[1694117387193,3.73016181,25903.0,25902.0,0.005117]
[1694117387399,3.73028181,25903.0,25902.0,0.005117]
[1694117387609,3.73022181,25903.0,25902.0,0.005117]
[1694117387811,3.34054889,25903.0,25902.0,0.005117]
[1694117388025,0.92594562,25903.0,25902.0,0.005117]
[1694117388153,1.1272019,25903.0,25902.0,0.005117]
[1694117392332,0.84896119,25903.0,25902.0,0.005117]
[1694117392530,1.1272019,25903.0,25902.0,0.005117]
[1694117393377,0.84896119,25903.0,25902.0,0.005117]
[1694117397210,0.77794968,25903.0,25902.0,0.005117]
[1694117406925,0.61406775,25903.0,25902.0,0.005117]
[1694117407161,0.17598734,25903.0,25902.0,1.01267929]
[1694117407426,0.08331453,25903.0,25902.0,2.40154]
[1694117407680,0.08331453,25903.0,25902.0,2.52074]
[1694117408189,0.08331453,25903.0,25902.0,2.51874]
[1694117408190,0.025,25903.0,25902.0,2.51874]
[1694117408643,0.027,25903.0,25902.0,2.54374]
[1694117410215,0.002,25903.0,25902.0,2.54174]
[1694117410229,0.004,25903.0,25902.0,2.56574]
[1694117417066,0.004,25903.0,25902.0,2.66574]
[1694117419160,0.004,25903.0,25902.0,2.62574]
[1694117419557,0.004,25903.0,25902.0,2.58574]
[1694117420003,0.004,25903.0,25902.0,2.66574]
[1694117420233,0.004,25903.0,25902.0,2.74574]
[1694117420933,0.004,25903.0,25902.0,3.54109322]
[1694117428067,0.004,25903.0,25902.0,3.15254]
[1694117429351,0.004,25903.0,25902.0,2.74574]
[1694117430588,0.004,25903.0,25902.0,3.15254]
[1694117431194,0.004,25903.0,25902.0,2.74574]
[1694117431452,0.004,25903.0,25902.0,3.15254]
[1694117481434,0.1735406,25909.0,25904.0,3.088238]
[1694117481659,0.50959566,25910.0,25906.0,1.54403]
[1694117481848,0.78599393,25910.0,25907.0,0.92739429]
[1694117481979,0.03517278,25908.0,25907.0,0.92739429]
[1694117482181,0.03517278,25908.0,25907.0,1.543962]
[1694117482390,0.50775322,25910.0,25907.0,1.543962]
[1694117482820,0.025,25909.0,25907.0,1.543962]
[1694117483029,0.025,25909.0,25908.0,0.1992]
[1694117483242,0.025,25909.0,25908.0,2.515086]
[1694117483454,0.27824071,25914.0,25912.0,0.08]
[1694117483669,0.45895469,25913.0,25912.0,0.08]
[1694117483886,0.45895469,25913.0,25912.0,0.851842]
[1694117484136,0.38855322,25913.0,25912.0,0.851842]
[1694117484943,0.42377708,25913.0,25912.0,0.851842]
[1694117485137,0.03522386,25913.0,25912.0,2.395528]
[1694117485324,0.03522386,25913.0,25912.0,2.397528]
[1694117485699,0.05722386,25913.0,25912.0,2.397528]
[1694117485910,0.022,25913.0,25912.0,2.397528]
[1694117486200,0.001,25913.0,25912.0,2.47995144]
[1694117486340,0.003,25913.0,25912.0,2.47995144]
[1694117488640,0.03830742,25913.0,25912.0,2.47995144]
[1694117491688,0.03830742,25913.0,25912.0,2.395528]
[1694117491893,0.03830742,25913.0,25912.0,2.457182]
[1694117498589,0.03730742,25913.0,25912.0,2.457182]
[1694117498763,0.03630742,25913.0,25912.0,2.457182]
[1694117498965,0.03730742,25913.0,25912.0,2.472182]
[1694117500388,0.03630742,25913.0,25912.0,2.472182]
[1694117500585,0.03730742,25913.0,25912.0,2.488182]
[1694117501247,0.03730742,25913.0,25912.0,2.545728]
[1694117501737,0.002,25913.0,25912.0,2.545728]
[1694117502120,0.03731478,25913.0,25912.0,2.545728]
[1694117507382,0.03731478,25913.0,25912.0,2.62186635]
[1694117507589,0.03731478,25913.0,25912.0,2.545728]
[1694117508190,0.03731478,25913.0,25912.0,2.62219962]
[1694117508605,0.03731478,25913.0,25912.0,2.545728]
[1694117510374,0.002,25913.0,25912.0,2.545728]
[1694117512414,0.002,25913.0,25912.0,2.61445353]
[1694117515067,0.03730742,25913.0,25912.0,2.61445353]
[1694117515272,0.002,25913.0,25912.0,2.545728]
[1694117515706,0.002,25913.0,25912.0,2.61154547]
[1694117516203,0.03730742,25913.0,25912.0,2.545728]
[1694117516352,0.002,25913.0,25912.0,2.545728]
[1694117520522,0.03730742,25913.0,25912.0,2.545728]
[1694117521007,0.002,25913.0,25912.0,2.545728]
[1694117521176,0.03730742,25913.0,25912.0,2.545728]
[1694117527262,0.03730742,25913.0,25912.0,2.6152699]
[1694117527649,0.002,25913.0,25912.0,2.6152699]
[1694117529380,0.03730742,25913.0,25912.0,2.6152699]
[1694117530348,0.03730742,25913.0,25912.0,2.545728]
[1694117530542,0.03730742,25913.0,25912.0,2.61924603]
[1694117530743,0.03730742,25913.0,25912.0,2.545728]
[1694117531734,0.03730742,25913.0,25912.0,2.6185813]
[1694117532765,0.03730742,25913.0,25912.0,2.545728]
[1694117535553,0.12981995,25913.0,25912.0,2.545728]
[1694117537795,0.03730742,25913.0,25912.0,2.545728]
[1694117539787,0.12981995,25913.0,25912.0,2.545728]
[1694117544091,0.03730742,25913.0,25912.0,2.545728]
[1694117544295,0.12997885,25913.0,25912.0,2.545728]
[1694117546737,0.03730742,25913.0,25912.0,2.545728]
[1694117557931,0.03730742,25913.0,25912.0,2.6132221]
[1694117558938,0.03730742,25913.0,25912.0,2.545728]
[1694117559293,0.03730742,25913.0,25912.0,2.61940873]
[1694117559879,0.002,25913.0,25912.0,2.61940873]
[1694117560081,0.03731951,25913.0,25912.0,2.61940873]
[1694117560279,0.03731951,25913.0,25912.0,2.545728]
[1694117560852,0.03731951,25913.0,25912.0,2.62894164]
[1694117562949,0.002,25913.0,25912.0,2.545728]
[1694117563828,0.002,25913.0,25912.0,2.62790022]
[1694117568649,0.002,25913.0,25912.0,2.545728]
[1694117569266,0.002,25913.0,25912.0,2.62564456]
[1694117569494,0.002,25913.0,25912.0,2.545728]
[1694117570112,0.002,25913.0,25912.0,2.62490944]
[1694117573694,0.002,25913.0,25912.0,2.545728]
[1694117574195,0.002,25913.0,25912.0,2.60859674]
[1694117582423,0.08457143,25915.0,25913.0,0.04031092]
[1694117582631,0.08457143,25915.0,25914.0,2.395349]
[1694117583638,0.08557143,25915.0,25914.0,2.395349]
[1694117584050,0.08657143,25915.0,25914.0,2.395349]
[1694117584253,0.08557143,25915.0,25914.0,2.395349]
[1694117584755,0.08757143,25915.0,25914.0,2.395349]
[1694117586329,0.003,25915.0,25914.0,2.395349]
[1694117587053,0.003,25915.0,25914.0,2.47739824]
[1694117590093,0.03835028,25915.0,25914.0,2.47739824]
[1694117638979,0.13103859,25915.0,25914.0,2.47739824]
[1694117639343,0.03835028,25915.0,25914.0,2.47739824]
[1694117640632,0.13103859,25915.0,25914.0,2.47739824]
[1694117640835,0.03835028,25915.0,25914.0,2.47739824]
[1694117641619,0.03835028,25915.0,25914.0,1.70561524]
[1694117642145,0.13103859,25915.0,25914.0,1.70561524]
[1694117645425,0.03835028,25915.0,25914.0,1.70561524]
[1694117662891,0.03835028,25915.0,25914.0,0.16204924]
[1694117663148,0.03835028,25915.0,25914.0,0.93383224]
[1694117663568,0.03835028,25915.0,25914.0,1.70561524]
[1694117701779,0.03835028,25915.0,25914.0,0.93383224]
[1694117703687,0.03835028,25915.0,25914.0,1.70561524]
[1694117727277,0.6828049,25915.0,25914.0,0.02]
[1694117727476,3.60611439,25915.0,25912.0,0.06]
[1694117727649,0.41714632,25913.0,25909.0,0.06098892]
[1694117727857,1.49624904,25912.0,25911.0,0.04]
[1694117728053,2.21189675,25912.0,25911.0,0.04]
[1694117728343,2.16363733,25912.0,25911.0,0.04]
[1694117728531,2.09421733,25912.0,25911.0,0.04]
[1694117728934,1.44156833,25912.0,25911.0,0.04]
[1694117729427,1.44156833,25912.0,25911.0,0.042]
[1694117729428,2.34254274,25912.0,25911.0,0.042]
[1694117729910,2.40806274,25912.0,25911.0,0.042]
[1694117730162,2.42658274,25912.0,25911.0,0.044]
[1694117730412,2.42706274,25912.0,25911.0,0.044]
[1694117730639,2.42706274,25912.0,25911.0,0.042]
[1694117730640,2.40788274,25912.0,25911.0,0.042]
[1694117730878,2.78217326,25912.0,25911.0,0.044]
[1694117731203,3.69075267,25912.0,25911.0,0.004]
[1694117731427,3.68806101,25912.0,25911.0,0.002]
[1694117731647,3.70758101,25912.0,25911.0,0.004]
[1694117731876,3.86210601,25912.0,25911.0,0.004]
[1694117732088,4.04717154,25912.0,25911.0,0.004]
[1694117732295,3.86210601,25912.0,25911.0,0.004]
[1694117732747,3.86198601,25912.0,25911.0,0.004]
[1694117732948,3.86180601,25912.0,25911.0,0.004]
[1694117733163,3.86162601,25912.0,25911.0,0.004]
[1694117733355,3.9541914,25912.0,25911.0,0.004]
[1694117733565,3.79757758,25912.0,25911.0,0.004]
[1694117733775,3.81011758,25912.0,25911.0,0.004]
[1694117734017,3.73777219,25912.0,25911.0,0.004]
[1694117734230,3.73807219,25912.0,25911.0,0.004]
[1694117734437,3.69148156,25912.0,25911.0,0.004]
[1694117734649,3.69196156,25912.0,25911.0,0.004]
[1694117734865,3.83079601,25912.0,25911.0,0.004]
[1694117735072,3.73843219,25912.0,25911.0,0.004]
[1694117735278,4.10018097,25912.0,25911.0,0.004]
[1694117735489,4.23692097,25912.0,25911.0,0.004]
[1694117735696,4.10444097,25912.0,25911.0,0.004]
[1694117735917,4.10438097,25912.0,25911.0,0.004]
[1694117736122,4.22406097,25912.0,25911.0,0.004]
[1694117736325,4.26425774,25912.0,25911.0,0.004]
[1694117736566,4.26209774,25912.0,25911.0,0.004]
[1694117736751,4.26305774,25912.0,25911.0,0.004]
[1694117736957,4.26173774,25912.0,25911.0,0.004]
[1694117737171,4.26329774,25912.0,25911.0,0.004]
[1694117737382,4.13159774,25912.0,25911.0,0.004]
[1694117737610,4.13075774,25912.0,25911.0,0.004]
[1694117737848,4.36308097,25912.0,25911.0,0.004]
[1694117738070,4.43525219,25912.0,25911.0,0.004]
[1694117738296,4.3872659,25912.0,25911.0,0.004]
[1694117738516,4.3871459,25912.0,25911.0,0.004]
[1694117738735,4.3619059,25912.0,25911.0,0.002]
[1694117738944,0.4868,25911.0,25904.0,0.08098605]
[1694117739199,0.1192,25905.0,25904.0,0.08098605]
[1694117739421,0.65817451,25905.0,25904.0,0.08098605]
[1694117739668,0.50775322,25905.0,25904.0,0.04]
[1694117739895,0.50775322,25905.0,25904.0,0.08]
[1694117740123,0.53780485,25905.0,25904.0,0.08]
[1694117740341,1.33285585,25905.0,25903.0,0.08]
[1694117740555,0.38855322,25904.0,25903.0,0.08]
[1694117741198,0.50775322,25904.0,25903.0,0.08]
[1694117741610,0.50775322,25904.0,25903.0,0.082]
[1694117742239,0.51375322,25904.0,25903.0,0.083]
[1694117742441,0.51375322,25904.0,25903.0,0.081]
[1694117742646,2.58302989,25904.0,25903.0,0.002]
[1694117744243,2.73758589,25904.0,25903.0,0.002]
[1694117746689,3.57512689,25904.0,25903.0,0.002]
[1694117746917,3.50266689,25904.0,25903.0,0.001]
[1694117747258,3.40746003,25904.0,25903.0,0.003]
[1694117747467,3.38670003,25904.0,25902.0,0.001117]
[1694117747735,0.53181292,25903.0,25902.0,0.001117]
[1694117747946,3.30449914,25903.0,25902.0,0.001117]
[1694117748163,3.30323914,25903.0,25902.0,0.001117]
[1694117748372,3.23669914,25903.0,25902.0,0.001117]
[1694117748580,3.23669914,25903.0,25902.0,0.003117]
[1694117748784,3.23669914,25903.0,25902.0,0.005117]
[1694117748989,3.23669914,25903.0,25902.0,0.003117]
[1694117749198,3.23669914,25903.0,25902.0,0.001117]
[1694117749620,3.30329914,25903.0,25902.0,0.001117]
[1694117749845,3.30491914,25903.0,25902.0,0.001117]
[1694117750038,3.30419914,25903.0,25902.0,0.001117]
[1694117750251,3.30419914,25903.0,25902.0,0.003117]
[1694117750252,3.31931914,25903.0,25902.0,0.003117]
[1694117750460,3.31949914,25903.0,25902.0,0.003117]
[1694117750662,3.33445914,25903.0,25902.0,0.005117]
[1694117750874,3.50616928,25903.0,25902.0,0.005117]
[1694117751304,3.50262928,25903.0,25902.0,0.005117]
[1694117751512,3.50550928,25903.0,25902.0,0.005117]
[1694117751722,3.50586928,25903.0,25902.0,0.005117]
[1694117751990,3.51240928,25903.0,25902.0,0.005117]
[1694117752202,3.51443556,25903.0,25902.0,0.005117]
[1694117752422,3.51077556,25903.0,25902.0,0.005117]
[1694117752650,3.51293556,25903.0,25902.0,0.005117]
[1694117752888,3.51497556,25903.0,25902.0,0.005117]
[1694117753119,3.51485556,25903.0,25902.0,0.005117]
[1694117753369,3.51479556,25903.0,25902.0,0.005117]
[1694117753597,3.51431556,25903.0,25902.0,0.005117]
[1694117754055,3.34747914,25903.0,25902.0,0.005117]
[1694117754280,3.34921914,25903.0,25902.0,0.005117]
[1694117754515,3.34891914,25903.0,25902.0,0.005117]
[1694117754741,3.34807914,25903.0,25902.0,0.005117]
[1694117754986,3.37920627,25903.0,25902.0,0.005117]
[1694117755224,3.38046627,25903.0,25902.0,0.005117]
[1694117755468,3.56962672,25903.0,25902.0,0.005117]
[1694117755690,3.37956627,25903.0,25902.0,0.005117]
[1694117755904,3.52040415,25903.0,25902.0,0.005117]
[1694117756158,3.52034415,25903.0,25902.0,0.005117]
[1694117756377,3.52016415,25903.0,25902.0,0.005117]
[1694117756515,3.51992415,25903.0,25902.0,0.005117]
[1694117756751,3.51962415,25903.0,25902.0,0.005117]
[1694117756974,3.51938415,25903.0,25902.0,0.005117]
[1694117757182,3.37836627,25903.0,25902.0,0.005117]
[1694117757408,3.37908627,25903.0,25902.0,0.005117]
[1694117757631,3.78582627,25903.0,25902.0,0.005117]
[1694117757835,3.53808704,25903.0,25902.0,0.005117]
[1694117758035,1.60425212,25903.0,25902.0,0.005117]
[1694117758397,1.59025212,25903.0,25902.0,0.003117]
[1694117758600,1.57525212,25903.0,25902.0,0.001117]
[1694117759196,2.34736312,25903.0,25902.0,0.001117]
[1694117759405,2.73697604,25903.0,25902.0,0.001117]
[1694117759637,2.76097604,25903.0,25902.0,0.001117]
[1694117759842,2.78497604,25903.0,25902.0,0.002117]
[1694117760249,2.76097604,25903.0,25902.0,0.002117]
[1694117760493,2.39536312,25903.0,25902.0,0.002117]
[1694117764543,2.42683088,25903.0,25902.0,0.002117]
[1694117769408,3.26506188,25903.0,25902.0,0.002117]
[1694117769631,3.26512188,25903.0,25902.0,0.002117]
[1694117769847,3.22518188,25903.0,25902.0,0.002117]
[1694117770080,3.6149148,25903.0,25902.0,0.002117]
[1694117770310,3.6143748,25903.0,25902.0,0.002117]
[1694117770532,3.5485548,25903.0,25902.0,0.002117]
[1694117770979,2.7564438,25903.0,25902.0,0.002117]
[1694117786128,0.62730035,25903.0,25902.0,0.002117]
[1694117788127,0.62730035,25903.0,25902.0,0.05646672]
[1694117788589,0.07654713,25903.0,25902.0,1.90102029]
[1694117788819,0.09251377,25909.0,25908.0,0.08]
[1694117789067,0.38855322,25909.0,25908.0,0.23542129]
[1694117789280,0.42677166,25909.0,25908.0,1.8450927]
[1694117789504,0.03821844,25909.0,25908.0,1.80887141]
[1694117790011,0.03821844,25909.0,25908.0,1.81087141]
[1694117790012,0.024,25909.0,25908.0,1.81087141]
[1694117790238,0.38861596,25911.0,25908.0,1.80887141]
[1694117790455,0.018,25909.0,25908.0,1.81087141]
[1694117791315,0.018,25909.0,25908.0,1.69167141]
[1694117791753,0.009,25909.0,25908.0,1.69067141]
[1694117791962,0.018,25909.0,25908.0,1.69167141]
[1694117796522,0.05634754,25909.0,25908.0,1.69167141]
[1694117808982,0.05634754,25909.0,25908.0,0.91970941]
[1694117834989,0.14886131,25909.0,25908.0,0.91970941]
[1694117837868,0.28763197,25909.0,25908.0,0.91970941]
[1694117838703,0.1951182,25909.0,25908.0,0.91970941]
[1694117840802,0.38014574,25909.0,25908.0,0.91970941]
[1694117841693,0.24137508,25909.0,25908.0,0.91970941]
[1694117841885,0.38046979,25909.0,25908.0,0.91970941]
[1694117842241,0.24137508,25909.0,25908.0,0.91970941]
[1694117873549,0.38046475,25909.0,25908.0,0.91970941]
[1694117876449,0.24137508,25909.0,25908.0,0.91970941]
[1694117877369,0.24137508,25909.0,25908.0,1.745124]
[1694117877370,0.05634754,25909.0,25908.0,1.745124]
[1694117877829,0.05634754,25909.0,25908.0,2.70036127]
[1694117878037,0.05634754,25909.0,25908.0,2.72036127]
[1694117878245,0.009,25909.0,25908.0,2.71936127]
[1694117878454,0.09272109,25912.0,25911.0,0.08]
[1694117878677,0.09272109,25913.0,25912.0,0.08]
[1694117878903,0.09272109,25914.0,25913.0,0.08]
[1694117879123,0.09272109,25914.0,25913.0,1.742826]
[1694117879336,0.13908164,25915.0,25914.0,0.08]
[1694117879337,0.23180273,25915.0,25914.0,0.08]
[1694117879553,0.09272109,25915.0,25914.0,2.514549]
[1694117879753,0.09272109,25915.0,25914.0,2.395349]
[1694117880215,0.09272109,25915.0,25914.0,2.46810862]
[1694117881502,0.09472109,25915.0,25914.0,2.49210862]
[1694117882103,0.10452109,25916.0,25915.0,0.03688596]
[1694117882277,0.10452109,25916.0,25915.0,0.80863896]
[1694117882676,0.10452109,25916.0,25915.0,0.88863896]
[1694117884283,0.10652109,25916.0,25915.0,0.90563896]
[1694117884861,0.10852109,25916.0,25915.0,0.92263896]
[1694117885215,0.0158,25916.0,25915.0,0.92263896]
[1694117889835,0.05044032,25916.0,25915.0,0.92263896]
[1694117894971,0.00344032,25916.0,25915.0,0.92263896]
[1694117895172,0.03464032,25916.0,25915.0,0.92263896]
[1694117895372,0.139,25919.0,25915.0,0.92263896]
[1694117895542,0.38855322,25918.0,25917.0,0.08]
[1694117895749,0.38855322,25918.0,25917.0,0.1510759]
[1694117898666,0.38855322,25918.0,25917.0,0.1310759]
[1694117898840,0.38855322,25918.0,25917.0,0.1510759]
[1694117902650,0.42163354,25918.0,25917.0,0.1510759]
[1694117904128,0.42163354,25918.0,25917.0,0.1310759]
[1694117904352,0.42163354,25918.0,25917.0,0.1510759]
[1694117910721,0.41163354,25918.0,25917.0,0.1510759]
[1694117911669,0.41163354,25918.0,25917.0,0.1310759]
[1694117911905,0.41163354,25918.0,25917.0,0.1510759]
[1694117916008,0.41163354,25918.0,25917.0,0.1310759]
[1694117916218,0.41163354,25918.0,25917.0,0.1510759]
[1694117921297,0.50435463,25918.0,25917.0,0.1510759]
[1694117921975,0.41163354,25918.0,25917.0,0.1510759]
[1694117922462,0.50435463,25918.0,25917.0,0.1510759]
[1694117923454,0.55071518,25918.0,25917.0,0.1510759]
[1694117924213,0.73574272,25918.0,25917.0,0.1510759]
[1694117924631,0.59666108,25918.0,25917.0,0.1510759]
[1694117925494,0.66672399,25918.0,25917.0,0.1510759]
[1694117925914,0.59666108,25918.0,25917.0,0.1510759]
[1694117927312,0.66671642,25918.0,25917.0,0.1510759]
[1694117928368,0.89800085,25918.0,25917.0,0.1510759]
[1694117929208,0.71297331,25918.0,25917.0,0.1510759]
[1694117932307,0.48168888,25918.0,25917.0,0.1510759]
[1694117932696,0.71337455,25918.0,25917.0,0.1510759]
[1694117932896,0.48168888,25918.0,25917.0,0.1510759]
[1694117935543,0.71338719,25918.0,25917.0,0.1510759]
[1694117935935,0.48168888,25918.0,25917.0,0.1510759]
[1694117936356,0.48168888,25918.0,25917.0,0.1310759]
[1694117936563,0.48168888,25918.0,25917.0,0.1510759]
[1694117940107,0.48168888,25918.0,25917.0,0.1310759]
[1694117940302,0.48168888,25918.0,25917.0,0.1510759]
[1694117942628,0.64334799,25918.0,25917.0,0.1510759]
[1694117942835,0.71338024,25918.0,25917.0,0.1510759]